Cogmind - Beta 15 @@@ ROGUE MODE // 2025.10.19 @ 02:16:09 Player: shapeshifter Result: Destroyed by SKR-2 with Enhanced Force Lance Performance ------------- Evolutions (8) 4000 Regions Visited (17) 3400 Robots Destroyed (103) 515 Value Destroyed (4585) 4585 Prototype IDs (68) 1360 Alien Tech Used (6) 1200 Bonus (8421) 8421 TOTAL SCORE: 23481 Bonus ------- High Alert Combat Kills 18 Follower Combat Kills 389 Registered with UFD 300 Met Optimus in HQ 500 Met Warlord at Base 500 MAIN.C Attacked Warlord 500 Warlord Defense Kills 2512 Used Core Reset Matrix 3000 Hacked Protovariant 500 Scanned by Researcher 500 Friendly Fire -298 Cogmind --------- Core Integrity 0/1450 Matter 219/300 Energy 67/100 System Corruption 9% Temperature Cool (0) Movement Core (50) Location -2/Protoforge Parts ------- > --- POWER (3) -------- (None) > --- PROPULSION (7) --- Combat Linear Gravjet > --- UTILITY (11) ----- Advanced Signal Interpreter Advanced Terrain Scan Processor Experimental Targeting Computer Advanced Target Analyzer Makeshift Hacking Suite > --- WEAPON (4) ------- (None) > --- INVENTORY (5) ---- Improved Antigrav System Particle Accelerator Dimensional Node Initializer High-powered Transdimensional Reconstructor Improved Plasma Cutter Peak State ------------ > --- POWER ------------ Reinforced Antimatter Reactor Quantum Reactor > --- PROPULSION ------- Gravmag Array Improved Antigrav System Improved Antigrav System Improved Antigrav System Combat Linear Gravjet Combat Linear Gravjet > --- UTILITY ---------- Advanced Heat Sink Large Storage Unit Advanced Sensor Array Advanced Signal Interpreter Advanced Terrain Scan Processor Experimental Targeting Computer Advanced Target Analyzer Heavy Regenerative Plating Makeshift Hacking Suite Improved Hacking Suite > --- WEAPON ----------- Railgun Perforator Force Lance > --- INVENTORY -------- Micro Antimatter Reactor Matter Drive Gravmag Array Improved Antigrav System Particle Accelerator Heavy Regenerative Plating Dimensional Node Initializer High-powered Transdimensional Reconstructor High-powered Transdimensional Reconstructor Subatomic Replicator Hellfire Missile Launcher Improved Plasma Cutter Portable AFG [Rating: 177] Favorites ----------- Power Meta Core Engine Light Ion Engine Power Core Meta Core Reactor Vortex Chain Reactor Propulsion Improved Antigrav System Treads Light Treads Leg Enhanced Biometal Leg Wheel Armored Huge Wheel Hover Unit Improved Antigrav System Flight Unit Flightbrick Utility Large Storage Unit Device Experimental Cooling System Storage Large Storage Unit Processor Experimental Targeting Computer Hackware Improved Hacking Suite Protection Medium Armor Plating Weapon Railgun Energy Gun Vortex Rail Energy Cannon Heavy Particle Cannon Ballistic Gun Railgun Ballistic Cannon Perforator Launcher Guided EMP Blaster Special Weapon Remote Datajack Slashing Weapon Greatsword Piercing Weapon Force Lance Build | -11 -10 -10 -8 -6 -6 -6 -5 -5 -5 -5 -4 -4 -3 -3 -2 -2 -2 ------- Run | Yrd Mat Sub Scr Fac Was Fac Fac Upp Upp War Pro Fac Res Qua Res Tes Frg Slots Evolved 16 | . . . . 8 . . 2 . . . . 2 2 . 2 . . Power 2 | . . . . 1 . . . . . . . . . . 1 . . Propulsion 5 | . . . . 3 . . 2 . . . . . . . . . . Utility 8 | . . . . 4 . . . . . . . 2 2 . . . . Weapon 1 | . . . . . . . . . . . . . . . 1 . . Parts Attached 143 | 7 3 10 8 14 . 8 5 3 . 24 6 19 4 3 7 19 3 Power 17 | 1 . 1 2 1 . . 1 . . 3 1 1 . . 1 4 1 Engine 4 | 1 . 1 2 . . . . . . . . . . . . . . Core 3 | . . . . 1 . . 1 . . 1 . . . . . . . Reactor 10 | . . . . . . . . . . 2 1 1 . . 1 4 1 Propulsion 46 | 2 2 4 2 2 . 2 2 1 . 6 1 8 1 2 4 6 1 Treads 3 | 2 . . 1 . . . . . . . . . . . . . . Leg 2 | . . . . . . . . . . 2 . . . . . . . Wheel 7 | . 2 4 1 . . . . . . . . . . . . . . Hover 23 | . . . . . . . . . . 1 1 7 1 2 4 6 1 Flight 11 | . . . . 2 . 2 2 1 . 3 . 1 . . . . . Utility 44 | 2 1 1 1 7 . 4 2 . . 8 . 7 3 1 2 5 . Device 21 | 1 . 1 . 4 . 1 1 . . 3 . 5 1 . 1 3 . Storage 3 | 1 1 . . . . 1 . . . . . . . . . . . Processor 12 | . . . . . . 1 1 . . 4 . 1 2 1 1 1 . Hackware 5 | . . . . 3 . . . . . 1 . 1 . . . . . Protection 3 | . . . 1 . . 1 . . . . . . . . . 1 . Artifact . | . . . . . . . . . . . . . . . . . . Weapon 36 | 2 . 4 3 4 . 2 . 2 . 7 4 3 . . . 4 1 Energy Gun 3 | . . . . . . 1 . . . 1 1 . . . . . . Energy Cannon 4 | . . . 1 . . 1 . . . 2 . . . . . . . Ballistic Gun 19 | 2 . 4 . 1 . . . 1 . 3 3 2 . . . 3 . Ballistic Cannon 1 | . . . . . . . . . . . . . . . . 1 . Launcher 2 | . . . . 1 . . . . . . . . . . . . 1 Special Weapon 4 | . . . 2 1 . . . . . 1 . . . . . . . Impact Weapon . | . . . . . . . . . . . . . . . . . . Slashing Weapon 1 | . . . . 1 . . . . . . . . . . . . . Piercing Weapon 2 | . . . . . . . . 1 . . . 1 . . . . . Special Melee Weapon . | . . . . . . . . . . . . . . . . . . Unidentified Prototypes 23 | . . . . 2 . 2 . 1 . 11 . 2 . 1 . 3 1 Parts Lost 63 | . . 9 . 1 1 2 1 1 1 2 6 5 2 . 9 8 15 Power 5 | . . 1 . . . . . . . . . . . . 1 . 3 Propulsion 26 | . . 3 . . . 1 . . . . 3 3 1 . 4 5 6 Utility 15 | . . 2 . 1 1 1 1 . 1 1 . 1 1 . 2 . 3 Weapon 17 | . . 3 . . . . . 1 . 1 3 1 . . 2 3 3 Highest Loss Streak 15 | . . 5 . 1 1 1 1 1 1 2 6 3 1 . 7 3 15 To Critical Strikes . | . . . . . . . . . . . . . . . . . . Average Backups 10 | 3 4 8 10 11 12 12 9 9 13 12 8 6 11 13 14 10 10 Power . | . 1 1 . . 1 1 . . 1 1 1 1 1 1 . . . Propulsion 2 | 1 2 2 2 2 4 3 2 1 1 2 2 1 2 2 2 1 1 Utility 1 | . . 1 2 2 2 2 . . 4 2 . 2 2 . . 1 1 Weapon 2 | . 1 2 1 2 2 2 5 4 5 5 3 2 4 4 4 1 . Tool/Special . | . . . . . . . . . . . . . . . . . . Unused Backups 27 | . . . 11 . 2 3 . . . 5 . . . 1 . . 5 Power . | . . . . . . . . . . . . . . . . . . Propulsion 2 | . . . 1 . . . . . . . . . . . . . 1 Utility 12 | . . . 4 . 2 2 . . . 2 . . . 1 . . 1 Weapon 8 | . . . 5 . . . . . . 3 . . . . . . . Tool/Special 5 | . . . 1 . . 1 . . . . . . . . . . 3 Average Slot Usage (%) 72 | . 100 87 71 39 39 43 54 55 56 71 72 84 93 93 82 79 69 Engine 6 | . 14 13 13 . . . . . . . . . . . . . . Core 1 | . . . . 3 4 4 7 8 8 7 3 . . . . . . Reactor 1 | . . . . . . . . . . . 4 4 4 4 4 6 6 Treads 1 | . 3 5 2 . . . . . . . . . . . . . . Wheel 7 | . 24 21 13 . . . . . . . . . . . . . . Hover 6 | . . . . . . . . . . . 1 21 30 30 26 23 20 Flight 5 | . . . . 8 9 8 16 17 20 20 16 6 . . . . . Device 5 | . 14 5 . 7 5 8 3 4 2 4 3 9 16 13 10 7 7 Storage 8 | . 14 14 14 4 4 4 4 4 4 4 3 1 4 4 4 4 3 Processor 5 | . . . . . . 3 3 4 4 12 13 10 13 19 18 18 16 Hackware 5 | . . . . 10 14 9 8 8 8 11 12 14 10 8 8 8 7 Protection 3 | . . . 9 . . 1 4 4 4 1 . . . . . . . Ballistic Gun 7 | . 28 25 3 . . . . 2 . 2 8 10 11 4 4 8 3 Special Weapon 3 | . . . 12 . . . . . . . . . . . . . . Piercing Weapon 1 | . . . . . . . . . 4 4 2 1 1 4 4 4 3 Peak Build Rating 177 | 7 7 16 31 91 83 92 101 103 103 161 161 152 158 163 164 177 135 Average Rating 73 | 5 7 11 22 76 77 80 99 98 101 135 130 129 153 159 153 141 122 On Entrance 86 | . 7 7 16 30 81 75 81 101 103 101 161 96 149 147 163 109 135 Naked Turns . | . . . . . . . . . . . . . . . . . . Heaviest Build 95 | 14 29 34 43 33 33 33 41 42 38 67 49 76 77 79 79 95 62 Greatest Support 84 | 40 40 40 30 30 30 30 42 42 48 52 52 83 83 82 81 84 84 Greatest Overweight (x) 3 | . 1 1 1 1 1 1 2 . . 1 3 . . . 1 1 1 Average Overweight (x) . | . . . . . . . . . . . . . . . . . . Largest Inventory Capacity 15 | 8 15 15 15 15 15 15 15 15 15 15 15 15 15 15 15 15 15 Average Capacity 14 | 7 13 15 15 15 15 15 15 15 15 15 12 9 15 15 15 15 14 Most Carried 15 | 5 5 14 15 15 15 15 15 14 15 15 14 15 14 15 15 15 14 Average Carried 12 | 3 4 9 14 13 14 14 10 10 14 14 9 7 11 13 14 12 12 Final Capacity 15 | 8 15 15 15 15 15 15 15 15 15 15 5 15 15 15 15 15 5 Final Carried 15 | 4 4 13 15 15 15 15 10 14 15 15 5 15 10 15 13 14 5 Class Distribution -------------------- 40% | Mutant 17% | Hacker-Sprinter 14% | Hacker-Mutant 13% | Hacker-Scout 7% | Scavenger-Mutant 4% | Hacker-Gunner Dominant Class ---------------- Mutant | -10/Materials Mutant | -10/Subcaves Mutant | -8/Scraptown Hacker-Mutant | -6/Factory Hacker-Mutant | -6/Waste Hacker-Scout | -6/Factory Hacker-Sprinter | -5/Factory Hacker-Sprinter | -5/Upper Caves Hacker-Sprinter | -5/Upper Caves Hacker-Sprinter | -5/Warlord Hacker-Sprinter | -4/Proximity Caves Hacker-Sprinter | -4/Factory Hacker-Scout | -3/Research Hacker-Scout | -3/Quarantine Hacker-Scout | -2/Research Hacker-Gunner | -2/Testing Scavenger-Mutant | -2/Protoforge Resources | -11 -10 -10 -8 -6 -6 -6 -5 -5 -5 -5 -4 -4 -3 -3 -2 -2 -2 ----------- Run | Yrd Mat Sub Scr Fac Was Fac Fac Upp Upp War Pro Fac Res Qua Res Tes Frg Matter Collected 3566 | 338 42 294 110 34 29 351 114 40 . 375 208 508 194 33 49 837 10 Remotely . | . . . . . . . . . . . . . . . . . . Salvage Created 4258 | 156 . 340 . 129 10 210 233 . . 620 491 682 194 58 68 1020 47 Parts 233 | 13 . 33 . 9 . 15 10 . . 12 37 40 8 3 6 42 5 Haulers Intercepted 2 | . . . . . . 1 . . . . . 1 . . . . . Recyclers Shooed 2 | . . . . . . . . . . . . . 2 . . . . Parts Field Recycled . | . . . . . . . . . . . . . . . . . . Retrieved Matter . | . . . . . . . . . . . . . . . . . . Parts Self-Destructed 37 | . . . . . . . . . . . 37 . . . . . . Prevented . | . . . . . . . . . . . . . . . . . . Kills | -11 -10 -10 -8 -6 -6 -6 -5 -5 -5 -5 -4 -4 -3 -3 -2 -2 -2 ------- Run | Yrd Mat Sub Scr Fac Was Fac Fac Upp Upp War Pro Fac Res Qua Res Tes Frg Combat Hostiles Destroyed 74 | . . 10 . 6 . 2 1 . . 18 16 11 . . . 10 . Melee 4 | . . . . . . 2 1 . . . . . . . . 1 . Guns 41 | . . 10 . . . . . . . . 14 11 . . . 6 . Cannons 21 | . . . . . . . . . . 18 . . . . . 3 . AOE 8 | . . . . 6 . . . . . . 2 . . . . . . Classes Destroyed 19 | 2 . 1 . 1 . 3 3 . . 6 . 1 . 1 . 1 . Worker 5 | . . . . . . . 2 . . . . . . . . 1 2 Builder 6 | . . . . . . . . . . . . 1 2 . 2 1 . Tunneler 5 | 4 . . . . . . . . . . . . . . 1 . . Hauler 2 | . . . . . . 1 . . . . . 1 . . . . . Recycler 3 | 1 . . . . . . 1 . . . . . 1 . . . . Operator 2 | . . . . . . . 1 . . . . . . 1 . . . Watcher 2 | . . . . . . . . . . . . . . 1 1 . . Swarmer 23 | . . . . 6 . . . . . . 12 5 . . . . . Grunt 21 | . . . . . . . . . . 5 4 6 . . . 6 . Brawler 3 | . . . . . . . . . . 2 . . . . . 1 . Protector 2 | . . . . . . . . . . 2 . . . . . . . Researcher 2 | . . . . . . . . . . . . . . . . 2 . Sentry 1 | . . . . . . . 1 . . . . . . . . . . Demolisher 2 | . . . . . . . . . . 2 . . . . . . . Hunter 2 | . . . . . . 1 . . . 1 . . . . . . . Programmer 6 | . . . . . . 1 . . . 2 . . . . . 3 . Behemoth 2 | . . . . . . . . . . 2 . . . . . . . Investigator 1 | . . . . . . . . . . . . . . . . 1 . Executioner 2 | . . . . . . . . . . 2 . . . . . . . Subdweller 10 | . . 10 . . . . . . . . . . . . . . . Wasp 1 | . . . . . 1 . . . . . . . . . . . . Best Kill Streak 10 | 2 . 3 . 6 . 2 2 . . 10 9 5 1 2 2 3 2 Combat Bots Only 10 | . . 3 . 6 . 1 1 . . 10 9 5 . . . 3 . Max Kills in Single Turn 4 | 1 . 1 . 4 1 1 1 . . 1 2 2 1 1 2 2 1 Gunslinging 1 | . . . . . . . . . . . 1 1 . . . 1 . Exploded 4 | . . . . 4 . . . . . . 2 . . . . . . Melee 1 | . . . . . . 1 1 . . . . . . . . 1 . Uniques/NPCs Destroyed . | . . . . . . . . . . . . . . . . . . Combat | -11 -10 -10 -8 -6 -6 -6 -5 -5 -5 -5 -4 -4 -3 -3 -2 -2 -2 -------- Run | Yrd Mat Sub Scr Fac Was Fac Fac Upp Upp War Pro Fac Res Qua Res Tes Frg Hostile Shots Fired 741 | . 1 63 . 24 1 46 35 3 13 38 109 88 72 4 61 95 88 Missed 276 | . 1 12 . 8 . 25 20 2 6 14 29 33 37 1 22 24 42 Hits 465 | . . 51 . 16 1 21 15 1 7 24 80 55 35 3 39 71 46 Melee 28 | . . . . . 1 3 . . . . 1 . . . . . 23 Projectile 437 | . . 51 . 16 . 18 15 1 7 24 79 55 35 3 39 71 23 AOE 7 | . . . . . . . . . . 6 . . . . . 1 . Critical Strikes 22 | . . . . . 1 3 . . . 3 2 2 2 . 1 5 3 Actively Blocked 2 | . . . . . . 2 . . . . . . . . . . . Part Disruptions 2 | . . . . . . . . . . 1 . . . . . 1 . Damage Taken 11559 | . 10 1095 . 338 47 576 356 20 154 783 1541 1087 659 60 894 1590 2349 Core 2140 | . . 200 . 16 . 59 14 . . 157 271 138 82 . 87 154 962 Absorbed by Shields 99 | . . . . . . . . . . 99 . . . . . . . Redirected to Shielding 28 | . . . . . . 23 5 . . . . . . . . . . Regen/Repaired (Parts) 44 | . . . . . . . . . . 8 . . . . . 36 . Core Remaining (%) 74 | 100 . . 20 . . 91 . . . . 55 88 . 93 . . . Volleys Fired 285 | 17 3 68 . 6 13 1 . . . 55 30 34 9 11 12 23 3 Largest 3 | 2 2 2 . 1 1 1 . . . 1 2 3 3 1 1 3 1 Hottest 114 | 40 40 60 . 80 75 85 . . . 100 76 114 108 45 45 105 60 Shots Fired 450 | 34 6 104 . 6 13 1 . . . 56 50 83 21 11 12 50 3 Gun 369 | 34 6 104 . . . . . . . 3 50 83 21 11 12 45 . Cannon 71 | . . . . . 13 1 . . . 52 . . . . . 5 . Launcher 6 | . . . . 3 . . . . . . . . . . . . 3 Special 4 | . . . . 3 . . . . . 1 . . . . . . . Kinetic 343 | 34 6 104 . . . . . . . 3 42 83 21 . . 50 . Thermal 17 | . . . . 3 13 1 . . . . . . . . . . . Explosive 3 | . . . . . . . . . . . . . . . . . 3 Electromagnetic 3 | . . . . 3 . . . . . . . . . . . . . Entropic 83 | . . . . . . . . . . 52 8 . . 11 12 . . Robot Hit Streak 23 | 7 4 13 . 3 6 . . . . 23 21 10 6 5 6 11 5 Robot Miss Streak 7 | 3 1 2 . 1 2 . . . . 2 3 5 3 . 1 7 . Penetration Max 2 | . . . . . . . . . . 1 2 1 1 . 1 2 . Secondary Targets 8 | . . . . . . . . . . . 4 3 . . . 1 . Max Gunslinging Chain 1 | . . . . . . . . . . . 1 1 . . . 1 . Shots Hit Robots 338 | 21 5 72 . 3 9 5 10 . . 48 35 49 13 5 7 51 5 Core Hits 161 | 7 1 19 . 7 5 3 4 . . 17 23 28 6 4 5 27 5 Critical Kills 7 | . . . . . . . . . . . 1 . . . . 6 . Critical Parts Destroyed 12 | . . . . . . . . . . . 1 . 1 1 1 8 . Critical Strikes 56 | . . 1 . . . 1 3 . . 30 2 . 1 1 2 15 . Destroy 17 | . . 1 . . . . . . . . 1 . 1 . . 14 . Sever 4 | . . . . . . 1 3 . . . . . . . . . . Impale 2 | . . . . . . . . . . . . . . . 1 1 . Detonate 3 | . . . . . . . . . . . 1 . . 1 1 . . Sunder 30 | . . . . . . . . . . 30 . . . . . . . Melee Attacks 103 | . . . . 3 1 13 15 1 . 2 . . 6 14 16 24 8 Impact . | . . . . . . . . . . . . . . . . . . Slashing 32 | . . . . 3 1 13 15 . . . . . . . . . . Piercing 71 | . . . . . . . . 1 . 2 . . 6 14 16 24 8 Sneak Attacks 11 | . . . . . . 1 3 . . . . . . 1 2 2 2 Combat Hostiles 1 | . . . . . . . . . . . . . . . . 1 . Follow-up Attacks . | . . . . . . . . . . . . . . . . . . Damage Inflicted 14382 | 222 52 1115 . 298 325 350 706 . . 3934 1538 1537 577 231 692 1812 993 Guns 6121 | 222 52 1115 . . . . . . . 6 1279 1502 396 33 187 1329 . Cannons 4303 | . . . . . 325 . . . . 3923 . . . . . 55 . Explosions 1633 | . . . . 274 . . . . . . 259 35 . 65 167 . 833 Melee 2076 | . . . . . . 311 706 . . . . . . 133 338 428 160 Ramming 225 | . . . . . . 39 . . . 5 . . 181 . . . . Kinetic 5597 | 222 52 1115 . . . . . . . 6 920 1502 396 . . 1384 . Thermal 975 | . . . . 159 325 . . . . . 259 . . 65 167 . . Explosive 833 | . . . . . . . . . . . . . . . . . 833 Electromagnetic 174 | . . . . 139 . . . . . . . 35 . . . . . Impact . | . . . . . . . . . . . . . . . . . . Slashing 1017 | . . . . . . 311 706 . . . . . . . . . . Piercing 1059 | . . . . . . . . . . . . . . 133 338 428 160 Entropic 4502 | . . . . . . . . . . 3923 359 . . 33 187 . . Highest Corruption 12 | . . . . . 12 12 . . . 4 4 . 4 4 2 8 9 Average Corruption 7 | . . . . . 7 12 . . . 3 4 . 4 4 1 6 8 Corruption Purged . | . . . . . . . . . . . . . . . . . . Corruption Blocked 2 | . . . . . . . . . . . . . . . . 2 . Effects 54 | . . . . . 3 22 . . . 2 5 . 3 . 1 13 5 Message Errors 17 | . . . . . 1 6 . . . . 1 . 1 . 1 6 1 Matter Fused 9 | . . . . . . 5 . . . 1 . . 1 . . . 2 Heat Flow Errors 6 | . . . . . . 3 . . . . . . . . . 3 . Energy Discharges 10 | . . . . . 2 3 . . . . 2 . . . . 3 . Parts Rejected 1 | . . . . . . 1 . . . . . . . . . . . Data Loss (minor) 5 | . . . . . . 2 . . . . 1 . 1 . . 1 . Data Loss (major) 1 | . . . . . . . . . . . . . . . . . 1 Misfires 2 | . . . . . . . . . . 1 1 . . . . . . Alerts 1 | . . . . . . . . . . . . . . . . . 1 Misdirections 2 | . . . . . . 2 . . . . . . . . . . . Overload Shots . | . . . . . . . . . . . . . . . . . . Overflow Damage 503 | . . . . 5 10 15 110 . . 166 1 . 34 . 42 . 120 Projectiles 176 | . . . . . 10 . . . . 166 . . . . . . . Explosions 72 | . . . . 5 . . . . . . 1 . . . 25 . 41 Melee 255 | . . . . . . 15 110 . . . . . 34 . 17 . 79 Knockbacks 6 | . . . . . . . . . . . . . 3 . . 3 . Impact 3 | . . . . . . . . . . . . . 3 . . . . Kinetic 3 | . . . . . . . . . . . . . . . . 3 . Secondary . | . . . . . . . . . . . . . . . . . . Self-Inflicted Damage 487 | . . . . . . 19 . . . 2 55 . 89 . 25 . 297 Shots 5 | . . . . . . . . . . . 1 . . . 1 . 3 Rammed 7 | . . . . . . 2 . . . 1 . . 4 . . . . Targets Rammed 7 | . . . . . . 2 . . . 1 . . 4 . . . . Kicked . | . . . . . . . . . . . . . . . . . . Crushed . | . . . . . . . . . . . . . . . . . . Highest Temperature 540 | . 6 . . 32 242 215 13 5 142 302 28 304 4 . 66 540 . Average Temperature 110 | . 6 . . 15 127 88 2 1 68 99 10 92 4 . 25 158 . Received Heat Transfer 1152 | . 6 180 . . . 27 48 9 18 8 190 246 . 33 72 297 18 Effects 6 | . . . . . . . . . . 1 . . . . . 5 . Shutdowns 1 | . . . . . . . . . . . . . . . . 1 . Interference 1 | . . . . . . . . . . 1 . . . . . . . Short Circuit 2 | . . . . . . . . . . . . . . . . 2 . Damage (minor) 2 | . . . . . . . . . . . . . . . . 2 . Siege Activations . | . . . . . . . . . . . . . . . . . . Martial Activations . | . . . . . . . . . . . . . . . . . . Shielding Activations . | . . . . . . . . . . . . . . . . . . Robots Disrupted 1 | . . . . 1 . . . . . . . . . . . . . Combat Hostiles 1 | . . . . 1 . . . . . . . . . . . . . Robots Corrupted 1 | . . . . . . . . . . . . . 1 . . . . Combat Hostiles . | . . . . . . . . . . . . . . . . . . Parts Fried 2 | . . . . . . . . . . . . . 2 . . . . Impact Corruptions 2 | . . . . . . . . . . . . . 2 . . . . Robots Melted . | . . . . . . . . . . . . . . . . . . Combat Hostiles . | . . . . . . . . . . . . . . . . . . Parts Melted 2 | . . 1 . . . . . . . . . . . . . 1 . Heat Transferred 991 | . . . . 310 481 . . . . . 50 . . . 150 . . Parts Sabotaged . | . . . . . . . . . . . . . . . . . . Parts Stolen . | . . . . . . . . . . . . . . . . . . Parts Stripped . | . . . . . . . . . . . . . . . . . . Power Chain Reactions 1 | . . . . 1 . . . . . . . . . . . . . Alert | -11 -10 -10 -8 -6 -6 -6 -5 -5 -5 -5 -4 -4 -3 -3 -2 -2 -2 ------- Run | Yrd Mat Sub Scr Fac Was Fac Fac Upp Upp War Pro Fac Res Qua Res Tes Frg Maximum Alert Level 2 | . . . . 1 . . . . . . . 2 1 1 2 2 1 Low Security (%) 66 | 100 100 . . 86 100 100 100 . . . . 7 . 62 73 28 83 Level 1 28 | . . . . 13 . . . . . . . 65 100 37 26 57 16 Level 2 5 | . . . . . . . . . . . . 26 . . . 13 . Level 3 . | . . . . . . . . . . . . . . . . . . Level 4 . | . . . . . . . . . . . . . . . . . . Level 5 . | . . . . . . . . . . . . . . . . . . High Security . | . . . . . . . . . . . . . . . . . . Max Security . | . . . . . . . . . . . . . . . . . . Peak Influence 464 | 10 4 . . 224 56 136 75 . . . . 464 264 233 401 426 235 Initial 234 | . . . . . 56 . 51 . . . . 195 234 144 116 186 211 Average 146 | . . . . 94 22 57 31 . . . . 340 242 187 197 270 89 Influence Increases 3886 | 25 4 . . 284 21 350 146 75 90 536 470 517 134 163 427 508 136 Destroy 0b10 Robot/C 1440 | . . . . 120 . 40 20 . . 460 320 220 . . . 260 . Destroy 0b10 Robot/NC 135 | 25 . . . . . 5 20 . . 10 . 10 15 10 20 10 10 Destroy Leader 148 | . . . . 20 . 22 10 . . . 30 32 . 2 2 30 . Allied During Kill 66 | . . . . . . . . . . 66 . . . . . . . Successful Hack 140 | . 4 . . 17 . 52 . . . . . 10 . 2 21 13 21 Select Force Hacks 30 | . . . . 30 . . . . . . . . . . . . . Disable Machine 330 | . . . . . . 15 15 . . . . 60 15 105 30 75 15 Destroy Structure 382 | . . . . 7 21 6 6 . . . . 80 14 44 159 30 15 Partial Spotted 105 | . . . . . . 30 15 . . . . 15 30 . 15 . . Lose Combat Pursuer 1110 | . . . . 90 . 180 60 75 90 . 120 90 60 . 180 90 75 Influence Decreases 3886 | 25 4 . . 123 182 243 184 76 54 310 490 379 324 214 301 465 512 Entered New Map 1481 | . . . . . 105 . 56 26 14 104 330 115 214 114 91 147 165 Time Decay 1611 | 25 4 . . 123 30 203 118 40 30 96 100 214 90 100 120 238 80 Lost Part 497 | . . . . . 10 20 10 10 10 20 60 50 20 . 90 80 117 Lost Ally 147 | . . . . . 37 20 . . . 90 . . . . . . . Purge Threat 150 | . . . . . . . . . . . . . . . . . 150 Squads Dispatched 48 | . 2 . . 7 . 13 4 . 1 . . 4 3 2 4 6 2 Investigation 25 | . 1 . . 5 . 8 4 . . . . 2 2 . 2 . 1 Extermination 9 | . . . . 1 . 2 . . . . . 1 1 1 1 2 . Reinforcement 12 | . 1 . . 1 . 3 . . . . . 1 . 1 1 3 1 Assault 2 | . . . . . . . . . 1 . . . . . . 1 . Garrison . | . . . . . . . . . . . . . . . . . . Intercept . | . . . . . . . . . . . . . . . . . . Searches Triggered . | . . . . . . . . . . . . . . . . . . Construction Impeded . | . . . . . . . . . . . . . . . . . . Haulers Reinforced . | . . . . . . . . . . . . . . . . . . Active Scanning Responses . | . . . . . . . . . . . . . . . . . . Cargo Convoy Interrupts . | . . . . . . . . . . . . . . . . . . Stealth | -11 -10 -10 -8 -6 -6 -6 -5 -5 -5 -5 -4 -4 -3 -3 -2 -2 -2 --------- Run | Yrd Mat Sub Scr Fac Was Fac Fac Upp Upp War Pro Fac Res Qua Res Tes Frg Distress Signals 11 | . 2 . . . . 4 . . . . . 1 . . 2 1 1 Communications Jammed 39 | . . . . . . . . . . . . 11 28 . . . . Distress Signals 27 | . . . . . . . . . . . . 11 16 . . . . Times Spotted 275 | . 4 12 . 13 7 29 15 9 20 37 22 19 13 7 19 23 26 Peak Tracking Total 19 | . 4 3 . 6 6 9 10 7 18 8 11 7 6 5 19 6 19 Tactical Retreats 27 | . . . . 1 1 6 1 3 1 . 3 2 3 . 1 4 1 Traps | -11 -10 -10 -8 -6 -6 -6 -5 -5 -5 -5 -4 -4 -3 -3 -2 -2 -2 ------- Run | Yrd Mat Sub Scr Fac Was Fac Fac Upp Upp War Pro Fac Res Qua Res Tes Frg Traps Triggered 11 | . . . . 3 . 3 . . . . . 2 . . . 3 . Indirectly . | . . . . . . . . . . . . . . . . . . Trap Hack Attempts . | . . . . . . . . . . . . . . . . . . Triggered . | . . . . . . . . . . . . . . . . . . Disarmed . | . . . . . . . . . . . . . . . . . . Reprogrammed . | . . . . . . . . . . . . . . . . . . Reused . | . . . . . . . . . . . . . . . . . . Traps Extracted . | . . . . . . . . . . . . . . . . . . Installed . | . . . . . . . . . . . . . . . . . . Triggered . | . . . . . . . . . . . . . . . . . . Machines | -11 -10 -10 -8 -6 -6 -6 -5 -5 -5 -5 -4 -4 -3 -3 -2 -2 -2 ---------- Run | Yrd Mat Sub Scr Fac Was Fac Fac Upp Upp War Pro Fac Res Qua Res Tes Frg Machines Disabled 27 | . . 1 . . . 1 1 . . 2 . 4 1 8 2 5 2 Max in Single Turn 2 | . . 1 . . . 1 1 . . 1 . 2 1 2 1 1 2 Garrison Access 1 | . . . . . . . . . . . . 1 . . . . . Machines Repaired . | . . . . . . . . . . . . . . . . . . Machines Dismantled . | . . . . . . . . . . . . . . . . . . Machines Sabotaged . | . . . . . . . . . . . . . . . . . . Overloaded Fab Kills . | . . . . . . . . . . . . . . . . . . Hacking | -11 -10 -10 -8 -6 -6 -6 -5 -5 -5 -5 -4 -4 -3 -3 -2 -2 -2 --------- Run | Yrd Mat Sub Scr Fac Was Fac Fac Upp Upp War Pro Fac Res Qua Res Tes Frg Machines Accessed 63 | . 2 1 2 10 . 15 5 1 . 3 . 7 2 2 4 6 3 Terminals 29 | . 2 . . 4 . 6 1 . . . . 4 1 2 2 5 2 Fabricators 4 | . . . . 1 . 2 . . . . . . . . . 1 . Repair Stations . | . . . . . . . . . . . . . . . . . . Recycling Units 22 | . . . . 5 . 7 4 . . . . 2 1 . 2 . 1 Scanalyzers . | . . . . . . . . . . . . . . . . . . Garrison Access 1 | . . . . . . . . . . . . 1 . . . . . Total Hacks 141 | . 4 1 22 22 . 31 9 1 . 10 . 11 3 4 6 12 5 Successful 101 | . 1 1 22 15 . 19 6 1 . 10 . 7 1 3 5 7 3 Failed 40 | . 3 . . 7 . 12 3 . . . . 4 2 1 1 5 2 Catastrophic 6 | . . . . . . 2 . . . . . . 1 1 . 1 1 Database Lockouts . | . . . . . . . . . . . . . . . . . . Manual 45 | . 5 . . 9 . 15 5 . . . . 3 3 . 2 2 1 Terminals 63 | . 4 . . 12 . 14 1 . . . . 8 1 4 4 11 4 Fabricators 5 | . . . . 1 . 3 . . . . . . . . . 1 . Repair Stations . | . . . . . . . . . . . . . . . . . . Recycling Units 38 | . . . . 9 . 14 8 . . . . 2 2 . 2 . 1 Scanalyzers . | . . . . . . . . . . . . . . . . . . Garrison Access 1 | . . . . . . . . . . . . 1 . . . . . Terminal Hacks 63 | . . 1 22 6 . 5 . 1 . 10 . 4 . 3 3 6 2 Record 22 | . . . 21 . . . . . . . . . . . 1 . . Part Schematic 2 | . . . . . . . . . . . . . . . . 2 . Robot Schematic 1 | . . . . . . . . . . . . 1 . . . . . Prototype ID Bank 12 | . . . . 2 . . . . . 9 . . . 1 . . . Open Door 3 | . . . . . . . . 1 . 1 . . . . . 1 . Level Access Points 2 | . . . . . . 1 . . . . . . . . . . 1 Branch Access Points 4 | . . . . 1 . 1 . . . . . 1 . . 1 . . Emergency Access Points 1 | . . . . . . . . . . . . 1 . . . . . Terminal Index 1 | . . . . 1 . . . . . . . . . . . . . Alert Level 2 | . . . . . . 1 . . . . . . . 1 . . . Unreport Threat 1 | . . . . . . . . . . . . . . . . . 1 Locate Traps 1 | . . . . . . . . . . . . . . . 1 . . Security Status 1 | . . . . . . 1 . . . . . . . . . . . Transport Status 1 | . . . . 1 . . . . . . . . . . . . . Registered Components 1 | . . . . 1 . . . . . . . . . . . . . Zone Layout 4 | . . . . . . 1 . . . . . 1 . 1 . 1 . Proto ID Catalog 2 | . . 1 1 . . . . . . . . . . . . . . Protovariant Controls 2 | . . . . . . . . . . . . . . . . 2 . Fabricator Hacks 4 | . . . . 1 . 2 . . . . . . . . . 1 . Network Status 2 | . . . . 1 . . . . . . . . . . . 1 . Build 2 | . . . . . . 2 . . . . . . . . . . . Repair Station Hacks . | . . . . . . . . . . . . . . . . . . Recycling Unit Hacks 8 | . . . . 2 . 4 2 . . . . . . . . . . Retrieve Components 8 | . . . . 2 . 4 2 . . . . . . . . . . Scanalyzer . | . . . . . . . . . . . . . . . . . . Garrison Access Hacks 1 | . . . . . . . . . . . . 1 . . . . . Seal Access 1 | . . . . . . . . . . . . 1 . . . . . Unauthorized Hacks 25 | . 1 . . 6 . 8 4 . . . . 2 1 . 2 . 1 Terminals 4 | . 1 . . 2 . 1 . . . . . . . . . . . Assimilate 1 | . . . . . . 1 . . . . . . . . . . . Botnet 1 | . . . . 1 . . . . . . . . . . . . . Skim 2 | . 1 . . 1 . . . . . . . . . . . . . Fabricators . | . . . . . . . . . . . . . . . . . . Repair Stations . | . . . . . . . . . . . . . . . . . . Recycling Units 21 | . . . . 4 . 7 4 . . . . 2 1 . 2 . 1 Tunnel 1 | . . . . 1 . . . . . . . . . . . . . Fedlink 20 | . . . . 3 . 7 4 . . . . 2 1 . 2 . 1 Scanalyzers . | . . . . . . . . . . . . . . . . . . Garrison Access . | . . . . . . . . . . . . . . . . . . Data Cores Recovered 1 | . . . . . . . 1 . . . . . . . . . . Used 1 | . . . . . . . 1 . . . . . . . . . . Hacking Detections 39 | . 2 . . 6 . 12 3 . . . . 4 2 2 2 4 2 Full Trace Events 2 | . . . . 1 . . . . . . . . 1 . . . . Feedback Events . | . . . . . . . . . . . . . . . . . . Feedback Blocked . | . . . . . . . . . . . . . . . . . . Robot Schematics Acquired 2 | . . . . . . . . . . . . 1 . . . 1 . Robots Built 1 | . . . . . . 1 . . . . . . . . . . . Authchips . | . . . . . . . . . . . . . . . . . . Time 38 | . . . . . . 38 . . . . . . . . . . . Total Robot Build Rating 3 | . . . . . . 3 . . . . . . . . . . . Part Schematics Acquired 9 | . . . . . . . . . . . . . . . . 9 . Parts Built 2 | . . . . . . 2 . . . . . . . . . . . Authchips . | . . . . . . . . . . . . . . . . . . Time 47 | . . . . . . 47 . . . . . . . . . . . Total Part Build Rating 10 | . . . . . . 10 . . . . . . . . . . . Parts Repaired . | . . . . . . . . . . . . . . . . . . Time . | . . . . . . . . . . . . . . . . . . Parts Recycled . | . . . . . . . . . . . . . . . . . . Recycled Matter . | . . . . . . . . . . . . . . . . . . Retrieved Matter . | . . . . . . . . . . . . . . . . . . Retrieved Components 17 | . . . . 5 . 11 1 . . . . . . . . . . Parts Scanalyzed . | . . . . . . . . . . . . . . . . . . Part Schematics Acquired . | . . . . . . . . . . . . . . . . . . Parts Damaged . | . . . . . . . . . . . . . . . . . . Bothacking | -11 -10 -10 -8 -6 -6 -6 -5 -5 -5 -5 -4 -4 -3 -3 -2 -2 -2 ------------ Run | Yrd Mat Sub Scr Fac Was Fac Fac Upp Upp War Pro Fac Res Qua Res Tes Frg Used RIF Installer . | . . . . . . . . . . . . . . . . . . Robots Hacked . | . . . . . . . . . . . . . . . . . . Non-combat . | . . . . . . . . . . . . . . . . . . Combat . | . . . . . . . . . . . . . . . . . . Robot Hacks Applied . | . . . . . . . . . . . . . . . . . . Relay Couplers Released . | . . . . . . . . . . . . . . . . . . Fabnet Peak Effective % . | . . . . . . . . . . . . . . . . . . Robots Rewired 5 | . . . . . . . . . . 5 . . . . . . . Allies Hacked 1 | . . . . . . . . . . 1 . . . . . . . Hacks Repelled . | . . . . . . . . . . . . . . . . . . Allies | -11 -10 -10 -8 -6 -6 -6 -5 -5 -5 -5 -4 -4 -3 -3 -2 -2 -2 -------- Run | Yrd Mat Sub Scr Fac Was Fac Fac Upp Upp War Pro Fac Res Qua Res Tes Frg Total Allies 26 | . . . . . 19 2 . . . 5 . . . . . . . Largest Group 19 | . . . . . 19 1 . . . 5 . . . . . . . Highest-Rated Group 702 | . . . . . 702 26 . . . 230 . . . . . . . Highest-Rated Ally 64 | . . . . . 50 26 . . . 64 . . . . . . . Total Orders . | . . . . . . . . . . . . . . . . . . Ally Attacks 156 | . . . . . 123 . . . . 33 . . . . . . . Total Damage 6220 | . . . . . 5024 . . . . 1196 . . . . . . . Kills 17 | . . . . . 10 . . . . 7 . . . . . . . Allies Corrupted . | . . . . . . . . . . . . . . . . . . Allies Melted . | . . . . . . . . . . . . . . . . . . Intel | -11 -10 -10 -8 -6 -6 -6 -5 -5 -5 -5 -4 -4 -3 -3 -2 -2 -2 ------- Run | Yrd Mat Sub Scr Fac Was Fac Fac Upp Upp War Pro Fac Res Qua Res Tes Frg Active Infowar (turns) 3827 | 23 180 85 . 303 123 512 251 98 31 488 130 312 196 202 250 507 136 Optics 618 | . . . . . . . . . . 488 130 . . . . . . Sensors 2125 | . . . . . . 454 251 98 31 . . . 196 202 250 507 136 Terrain 896 | . . . . 2 . . . . . . . 312 196 202 184 . . Structural 897 | . . . . 303 123 471 . . . . . . . . . . . Seismic 288 | 23 180 85 . . . . . . . . . . . . . . . Decoding 593 | . . . . . . . . . . 463 130 . . . . . . Jamming 348 | . . . . . . . . . . . . 205 143 . . . . ECM 53 | . . . . 53 . . . . . . . . . . . . . Robot Analysis Total . | . . . . . . . . . . . . . . . . . . Derelict Logs Recovered 5 | . . . 5 . . . . . . . . . . . . . . Drone Launches . | . . . . . . . . . . . . . . . . . . Drone Recoveries . | . . . . . . . . . . . . . . . . . . Exploration | -11 -10 -10 -8 -6 -6 -6 -5 -5 -5 -5 -4 -4 -3 -3 -2 -2 -2 ------------- Run | Yrd Mat Sub Scr Fac Was Fac Fac Upp Upp War Pro Fac Res Qua Res Tes Frg Turns Passed 7644 | 297 180 927 2109 325 123 512 266 98 62 740 236 443 196 202 250 507 171 Spaces Moved 9411 | 162 142 567 1670 533 217 957 360 273 208 1213 336 862 316 300 420 589 286 Core 25 | 23 . . . . . . . . . . . . . . . . 2 Treads 356 | 139 6 57 154 . . . . . . . . . . . . . . Legs . | . . . . . . . . . . . . . . . . . . Wheels 2162 | . 136 510 1516 . . . . . . . . . . . . . . Hover 2453 | . . . . . . . . . . . 21 523 316 300 420 589 284 Flight 4415 | . . . . 533 217 957 360 273 208 1213 315 339 . . . . . Fastest Speed 26 | 50 90 95 100 37 37 37 31 31 28 26 26 30 30 28 28 36 41 Average Speed 58 | 144 105 112 123 38 37 37 53 31 29 30 34 31 30 29 30 40 43 Slowest Speed 240 | 160 160 240 225 97 97 97 184 31 31 97 220 46 31 31 110 115 139 Overloaded Moves . | . . . . . . . . . . . . . . . . . . Propulsion Burnouts . | . . . . . . . . . . . . . . . . . . Robots Hopped 26 | . . . . . . 17 . . . 6 . 3 . . . . . Potential Cave-ins 7 | . . . . . . . . . . 2 . . . 2 3 . . Cave-ins Triggered . | . . . . . . . . . . . . . . . . . . Teleports 3 | . . . . . . . . . . . . . . . 2 . 1 Exploration Rate (%) 40 | 8 37 35 86 20 87 36 12 49 43 91 55 24 9 39 17 50 24 Regions Visited 17 Branch Regions 9 Pre-discovered Areas 10 | . . . 8 2 . . . . . . . . . . . . . Known Exits Taken 11 | . . . . . . 1 1 1 1 1 1 1 1 1 1 1 . Unknown Exits Taken 4 | 1 1 1 1 . . . . . . . . . . . . . . Scrap Searched 17 | . . 2 11 . . . . 2 2 . . . . . . . . Spaces Dug 85 | . . . . 3 1 6 2 1 . 2 . . 4 11 47 3 5 Terrain Destroyed 261 | . . . . 6 1 6 2 1 . 38 37 45 5 25 77 13 5 Melee 42 | . . . . 3 1 6 2 1 . 2 . . 4 7 8 3 5 Projectile 158 | . . . . . . . . . . 36 32 45 1 13 26 5 . AOE 56 | . . . . 3 . . . . . . 5 . . 5 43 . . Terrain Rammed . | . . . . . . . . . . . . . . . . . . Walls Destroyed . | . . . . . . . . . . . . . . . . . . Machines Disabled . | . . . . . . . . . . . . . . . . . . Actions | -11 -10 -10 -8 -6 -6 -6 -5 -5 -5 -5 -4 -4 -3 -3 -2 -2 -2 --------- Run | Yrd Mat Sub Scr Fac Was Fac Fac Upp Upp War Pro Fac Res Qua Res Tes Frg Total 10937 | 194 166 755 1733 646 245 1078 403 285 208 1532 409 952 383 371 495 772 310 Wait 601 | . 17 89 9 55 3 50 20 . . 169 14 5 42 30 27 67 4 Move 9349 | 161 141 566 1669 533 216 926 359 272 207 1202 335 855 315 299 419 588 286 Hop 21 | . . . . . . 14 . . . 4 . 3 . . . . . Pick Up 164 | 9 1 16 22 11 4 11 2 7 1 20 9 20 . 9 3 17 2 Fast Attach 39 | 2 . . 2 2 . 3 . . . 8 3 12 . . 2 4 1 Attach 136 | 5 . 9 5 17 2 18 6 4 . 20 8 8 4 3 5 18 4 Detach 42 | . . . 2 10 2 13 . 1 . 9 2 . . . 1 2 . Swap 36 | . 3 5 3 1 . . . . . 8 1 5 1 3 5 1 . Drop 107 | . 1 2 21 8 4 10 1 . . 21 7 10 2 2 5 11 2 Fire 285 | 17 3 68 . 6 13 1 . . . 55 30 34 9 11 12 23 3 Melee 103 | . . . . 3 1 13 15 1 . 2 . . 6 14 16 24 8 Ram 6 | . . . . . . 1 . . . 1 . . 4 . . . . Kick . | . . . . . . . . . . . . . . . . . . Crush . | . . . . . . . . . . . . . . . . . . Escape Stasis 35 | . . . . . . 18 . . . . . . . . . 17 . Rewire 13 | . . . . . . . . . . 13 . . . . . . . Trap . | . . . . . . . . . . . . . . . . . . Miscellaneous . | . . . . . . . . . . . . . . . . . . Route ------- -11/Scrapyard -10/Materials (discovered 2 exits: [*Mat] / *Sub) -10/Subcaves (discovered 2 exits: *Scr x2) -8/Scraptown (discovered 2 exits: *Fac x2) -6/Factory (discovered 5 exits: Fac / Low x2 / Ext x2) -6/Waste -6/Factory (discovered 8 exits: *Fac x4 / *Low x2 / Ext x2) -5/Factory (discovered 2 exits: *Upp x2) -5/Upper Caves -5/Upper Caves (discovered 2 exits: *Fac / *War) -5/Warlord -4/Proximity Caves -4/Factory (discovered 7 exits: *Res x4 / Upp x2 / Arm) -3/Research (discovered 4 exits: *Res x3 / *Qua) -3/Quarantine -2/Research (discovered 2 exits: *Tes x2) -2/Testing (discovered 2 exits: *Sec / *Frg) -2/Protoforge (discovered 1 exit: Acc) History --------- Turn | Location | Event 7 | -11/Scrapyard | Discovered new exit (range 16) 298 | -11/Scrapyard | Entered Materials 299 | -10/Materials | Met a group of wandering Federalists 331 | -10/Materials | Build established: Mutant 455 | -10/Materials | Discovered new exit (range 12) 460 | -10/Materials | Discovered new exit (range 9) 478 | -10/Materials | Entered Subcaves 479 | -10/Subcaves | Continued accompanying wandering Federalists (6) 479 | -10/Subcaves | Approached by a straggling Scientist 639 | -10/Subcaves | Lost 5 allies 692 | -10/Subcaves | Wandering Federalist uncovered a shortcut to Scraptown 818 | -10/Subcaves | A Subdweller sparked back to life 866 | -10/Subcaves | Core integrity fell below 50% 873 | -10/Subcaves | Found Prototype Power Core 966 | -10/Subcaves | Visited 4L-MR0's lab 1015 | -10/Subcaves | Lost 5 parts (1p2n1u1w) 1027 | -10/Subcaves | Identified Meta Core 1039 | -10/Subcaves | Found Flightbrick 1351 | -10/Subcaves | Scientist uncovered a shortcut to Scraptown 1405 | -10/Subcaves | Entered Scraptown 1468 | -8/Scraptown | Visited Bundlers 1509 | -8/Scraptown | Scanned Subdweller tech in exchange for log data 1512 | -8/Scraptown | Learned location of Warlord (-5) 1513 | -8/Scraptown | Learned location of Zion (-7) 1516 | -8/Scraptown | Learned location of Armory (-4) 1517 | -8/Scraptown | Learned Research terminal intel 1540 | -8/Scraptown | Build established: Scavenger-Mutant 1560 | -8/Scraptown | Discovered new exit (range 13) 1605 | -8/Scraptown | Heard Great Nut preacher, LISTEN AND RECITE! 1942 | -8/Scraptown | Build established: Mutant 2061 | -8/Scraptown | Visited Scrapoid Research Area 2161 | -8/Scraptown | Visited Red Mages 2179 | -8/Scraptown | Visited TADAMA 2193 | -8/Scraptown | Visited Fellowship of the Rings 2209 | -8/Scraptown | Visited UFD Registry 2209 | -8/Scraptown | Registered with UFD as "Rustguard" 2299 | -8/Scraptown | Guru changed UFD alias to "Quantumnade" 2396 | -8/Scraptown | Visited LU-1G1's Boring Crew 2412 | -8/Scraptown | Visited Science Testing Area 2428 | -8/Scraptown | Visited Chapter 10 2529 | -8/Scraptown | Visited Science Guys 2564 | -8/Scraptown | Visited Scrap Suit Storage 2579 | -8/Scraptown | Visited Supply Room 2601 | -8/Scraptown | Visited Cartography Club 2689 | -8/Scraptown | Learned location of Cetus (-6) 2689 | -8/Scraptown | Learned 8 Materials zone layouts 2689 | -8/Scraptown | Learned 12 Materials zone layouts 2689 | -8/Scraptown | Learned 12 Factory zone layouts 2689 | -8/Scraptown | Learned 24 Factory zone layouts 2689 | -8/Scraptown | Learned 16 Research zone layouts 2689 | -8/Scraptown | Learned 4 Access zone layouts 2689 | -8/Scraptown | Learned 4 Mines zone layouts 2689 | -8/Scraptown | Learned 4 Recycling zone layouts 2689 | -8/Scraptown | Learned 4 Armory zone layouts 2689 | -8/Scraptown | Learned Factory emergency access door positions 2689 | -8/Scraptown | Learned location of 3 exits from Upper Caves 2689 | -8/Scraptown | Learned location of 2 exits from Proximity Caves 2720 | -8/Scraptown | Found Deep Structural Scanner 2755 | -8/Scraptown | Visited DA-N13 Charitable Foundation 2760 | -8/Scraptown | Found DCF Scrap (27 items) 2788 | -8/Scraptown | Visited Junk Repository 2808 | -8/Scraptown | Visited Derelict Rescue Squad 2815 | -8/Scraptown | Found DRS Beacon 3458 | -8/Scraptown | Met Optimus 3458 | -8/Scraptown | Accepted into 0bPrime 3510 | -8/Scraptown | Discovered new exit (range 5) 3514 | -8/Scraptown | Entered Factory 3514 | -6/Factory | Evolved 8 slots: Power x1, Propulsion x3, Utility x4 3515 | -6/Factory | Identified exit to Extension 3516 | -6/Factory | Identified exit to Factory 3521 | -6/Factory | Attached Flightbrick, gained temporary slots: Utility x3 3529 | -6/Factory | Attached Meta Core, gained temporary slots: Propulsion, Utility, Weapon 3706 | -6/Factory | Loaded intel: 8 recycling unit locations 3769 | -6/Factory | Learned location of Protoforge (-2) 3786 | -6/Factory | Identified exit to Lower Caves 3814 | -6/Factory | Build established: Hacker-Mutant 3839 | -6/Factory | Manually triggered Chute Trap 3839 | -6/Factory | Sucked down chute 3839 | -6/Factory | Entered Waste 3846 | -6/Waste | Spotted C-40 Crusher 3849 | -6/Waste | Spotted C-40 Crusher 3849 | -6/Waste | Spotted C-40 Crusher 3849 | -6/Waste | Spotted C-40 Crusher 3854 | -6/Waste | EMP discharged 3860 | -6/Waste | Spotted C-40 Crusher 3866 | -6/Waste | Crushed by Compactor (1 part destroyed) 3868 | -6/Waste | Spotted C-40 Crusher 3881 | -6/Waste | Discovered new exit (range 13) 3894 | -6/Waste | Met Warlord forces unprepared to attack 3918 | -6/Waste | Allies destroyed C-40 Crusher 3926 | -6/Waste | Allies destroyed C-40 Crusher 3934 | -6/Waste | Allies destroyed C-40 Crusher 3954 | -6/Waste | EMP discharged 3954 | -6/Waste | System corruption reached 10% 3962 | -6/Waste | Entered Factory 3989 | -6/Factory | Lost 10 allies 4073 | -6/Factory | Loaded intel: 8 recycling unit locations 4238 | -6/Factory | Fabricated M-14 Sweeper? 4290 | -6/Factory | Fabricated Remote Shield? 4290 | -6/Factory | Build established: Hacker-Scout 4474 | -6/Factory | Entered another Factory area 4474 | -5/Factory | Evolved 2 slots: Propulsion x2 4475 | -5/Factory | Identified exit to Upper Caves 4539 | -5/Factory | Loaded intel: 8 recycling unit locations 4684 | -5/Factory | Spotted B-75 Beast 4740 | -5/Factory | Entered Upper Caves 4741 | -5/Upper Caves | Identified exit to Upper Caves 4809 | -5/Upper Caves | Attacked by a faux Warlord 4824 | -5/Upper Caves | Found DCF Scrap (12 items) 4826 | -5/Upper Caves | Found Alien Artifact 4827 | -5/Upper Caves | Identified Core Expander 4827 | -5/Upper Caves | Installed Core Expander, added new Weapon slot 4838 | -5/Upper Caves | Entered another Upper Caves area 4839 | -5/Upper Caves | Identified exit to Factory 4839 | -5/Upper Caves | Identified exit to Warlord 4863 | -5/Upper Caves | Attracted the attention of an 0b10 outpost 4869 | -5/Upper Caves | Attracted the attention of an 0b10 checkpoint 4880 | -5/Upper Caves | Spotted B-75 Beast 4900 | -5/Upper Caves | Entered Warlord 4901 | -5/Warlord | Identified exit to Proximity Caves 5040 | -5/Warlord | Rebuked by Warlord 5045 | -5/Warlord | Warlord's base attacked by MAIN.C 5051 | -5/Warlord | Found Prototype Energy Gun 5052 | -5/Warlord | Found Prototype Energy Gun 5052 | -5/Warlord | Identified Vortex Rail (x2) 5056 | -5/Warlord | Found Prototype Energy Cannon 5056 | -5/Warlord | Identified Vortex Driver 5062 | -5/Warlord | Found Vortex Driver 5148 | -5/Warlord | Found Prototype Processor 5150 | -5/Warlord | Found Prototype Processor 5151 | -5/Warlord | Identified Exp. Targeting Computer 5152 | -5/Warlord | Identified Spectral Analyzer 5153 | -5/Warlord | Found Prototype Device 5154 | -5/Warlord | Identified Thermal Barrier 5167 | -5/Warlord | Found Prototype Reactor 5395 | -5/Warlord | Warlord forces counterattacked 5402 | -5/Warlord | Spotted B-86 Titan 5422 | -5/Warlord | Spotted B-75 Beast 5433 | -5/Warlord | Destroyed B-86 Titan 5473 | -5/Warlord | Spotted B-86 Titan 5484 | -5/Warlord | Destroyed B-86 Titan 5499 | -5/Warlord | Spotted Executioner 5505 | -5/Warlord | Destroyed 10 combat bots 5552 | -5/Warlord | Lost 15 allies 5568 | -5/Warlord | Spotted Executioner 5577 | -5/Warlord | Destroyed Executioner 5583 | -5/Warlord | Spotted Executioner 5589 | -5/Warlord | Destroyed Executioner 5614 | -5/Warlord | Lost 8 allies 5640 | -5/Warlord | Entered Proximity Caves 5715 | -4/Proximity Caves | Spotted B-86 Titan 5720 | -4/Proximity Caves | Destroyed 9 combat bots 5819 | -4/Proximity Caves | Destroyed 7 combat bots 5819 | -4/Proximity Caves | Lost 6 parts (3n3w) 5876 | -4/Proximity Caves | Entered Factory 5876 | -4/Factory | Evolved 2 slots: Utility x2 5877 | -4/Factory | Identified exit to Research 6012 | -4/Factory | Lost 3 parts (1n1u1w) 6036 | -4/Factory | Spotted B-86 Titan 6086 | -4/Factory | Identified exit to Upper Caves 6086 | -4/Factory | Identified exit to Armory 6094 | -4/Factory | Allied Derelicts emerged from ambush trap array 6105 | -4/Factory | Identified Vortex Chain Reactor 6126 | -4/Factory | Loaded intel: 8 recycling unit locations 6272 | -4/Factory | Build established: Hacker-Sprinter 6319 | -4/Factory | Entered Research 6319 | -3/Research | Evolved 2 slots: Utility x2 6320 | -3/Research | Identified exit to Research 6322 | -3/Research | Loaded intel: 24 terminal locations 6377 | -3/Research | Discovered exit to Research (range 7) 6390 | -3/Research | Discovered new exit (range 16) 6452 | -3/Research | Loaded intel: 4 recycling unit locations 6514 | -3/Research | Identified exit to Quarantine 6515 | -3/Research | Entered Quarantine 6517 | -3/Quarantine | Found Alien Artifact 6518 | -3/Quarantine | Identified Core Reset Matrix 6518 | -3/Quarantine | Used Core Reset Matrix 6522 | -3/Quarantine | Detected hypermatrix surge 6522 | -3/Quarantine | Sensed 15 artifacts in vicinity 6537 | -3/Quarantine | Found Dimensional Node Initializer 6540 | -3/Quarantine | Found Hpw. Transdimensional Reconstructor 6541 | -3/Quarantine | Found Hpw. Transdimensional Reconstructor 6542 | -3/Quarantine | Found Hpw. Transdimensional Reconstructor 6544 | -3/Quarantine | Found Transdimensional Reconstructor 6569 | -3/Quarantine | Found Subatomic Replicator 6609 | -3/Quarantine | Build established: Hacker-Scout 6638 | -3/Quarantine | Discovered exit to Research (range 13) 6665 | -3/Quarantine | Found Matter Drive 6717 | -3/Quarantine | Entered Research 6717 | -2/Research | Evolved 2 slots: Power x1, Weapon x1 6788 | -2/Research | Identified exit to Testing 6861 | -2/Research | Loaded intel: 5 recycling unit locations 6864 | -2/Research | Warped through subspace 6920 | -2/Research | Warped through subspace 6950 | -2/Research | Lost 7 parts (4n2u1w) 6967 | -2/Research | Entered Testing 7003 | -2/Testing | Found Portable AFG 7080 | -2/Testing | Scanned by Researcher 7131 | -2/Testing | Protovariant out of control (PL-37RNJK9B6R) 7131 | -2/Testing | Unleashed a protovariant (PL-37RNJK9B6R) 7136 | -2/Testing | Found Prototype Launcher 7262 | -2/Testing | Lost 3 parts (1n2w) 7277 | -2/Testing | Found Prototype Ballistic Cannon 7316 | -2/Testing | Spotted Investigator 7338 | -2/Testing | Identified Perforator 7339 | -2/Testing | Destroyed Investigator 7359 | -2/Testing | Found Prototype Protection 7360 | -2/Testing | Identified Hvy. Regenerative Plating 7380 | -2/Testing | Found Hvy. Regenerative Plating 7438 | -2/Testing | Spotted Fortress 7469 | -2/Testing | Discovered new exit (range 6) 7469 | -2/Testing | Discovered new exit (range 6) 7471 | -2/Testing | Identified exit to Protoforge 7473 | -2/Testing | Identified exit to Section 7 7474 | -2/Testing | Entered Protoforge 7475 | -2/Protoforge | Sensed 2 artifacts in vicinity 7488 | -2/Protoforge | Identified exit to Access 7500 | -2/Protoforge | Superfortress began startup sequence 7523 | -2/Protoforge | Spotted Hotshot 7525 | -2/Protoforge | Spotted Hotshot 7530 | -2/Protoforge | Spotted Hotshot 7537 | -2/Protoforge | Spotted Hotshot 7537 | -2/Protoforge | Spotted Hotshot 7542 | -2/Protoforge | Spotted B-90 Cyclops 7585 | -2/Protoforge | Spotted Overlord 7594 | -2/Protoforge | Warped through subspace 7597 | -2/Protoforge | Spotted SKR-2 7600 | -2/Protoforge | Spotted SKR-2 7600 | -2/Protoforge | Spotted SKR-2 7621 | -2/Protoforge | Core integrity fell below 50% 7628 | -2/Protoforge | UFD initiated attack on Protoforge 7628 | -2/Protoforge | Loaded intel: 3 recycling unit locations 7630 | -2/Protoforge | Identified Hellfire Missile Launcher 7640 | -2/Protoforge | Core integrity fell below 20% 7645 | -2/Protoforge | Destroyed by SKR-2 with Enhanced Force Lance Last Messages --------------- 07636_ Gravmag Array destroyed. 07636_ SKR-2 follow-up attacks with Unknown Piercing Weapon. 07636_ Critical hit (Impale). 07636_ Hellfire Missile Launcher destroyed. 07636_ Force Lance destroyed. 07638_ 0bP_NET: WE! ARE! ONE! 07638_ Dropped Lrg. Storage Unit. 07639_ Dropped Hvy. Regenerative Plating. 07639_ Adv. Sensor Array destroyed. 07640_ Acquired Hpw. Transdimensional Reconstructor. 07641_ 0bP_NET: We're done hiding in the shadows, MC. 07641_ Acquired Particle Accelerator. 07642_ System corrupted: Matter fused (-6). 07642_ Critical hit (Impale). 07643_ 0bP_NET: You cast us aside, experiment on us, now we're here to secure our own future. 07644_ Acquired Subatomic Replicator. 07644_ Unable to initiate replication process, detached Subatomic Replicator. 07645_ Critical hit (Impale). Map ----- +----------------------------------------------------+ | """"""""""""""""" "? " ??????????????????????? | | """"""""""""""" "" "" ? "????????????????????? | | """"""""" "" "" ???????????????????? | | "" "" "? """???????????????????? | | """"% "% "" "" "" ?????????????????? | | " " " "?????????????????? | | " """" """" " "? ""?? ?????????????? | | " """ "" """""""""" "" ? ?????????????? | | """" """ " ????????????? | | " """ " """ " "? """"????????????? | | " " "" "" " "" ?????????????? | | " """" " "" "" ???????????????? | | "" "" """ " " " "??? ???????????? | | " " """" "" " ??????????? | | % " ??????????? | | """""""""" """ #?????????? | | """"""" """ ???????????? | | ?? """""""""" " " " """??????????????? | | ?????############"%"";;#;#+++#####???????????????? | | ???????????????#"""""# ""#???????????????? | | ???????????????####### "###?????????????? | | ???????????????????# % ""#?????????????? | | ???????????????????# % ""#?????????????? | | ???????????????????# ""#?????????????? | | ???????????????????# K! Y"#?????????????? | | ???????????????????# K@ ""#?????????????? | | ???????????????????#" K ""#?????????????? | | ???????????????????#" ""#?????????????? | | ???????????????????###" "###?????????????? | | ?????????????????????#"" ""#???????????????? | | ?????????????????????###"""Y"""###???????????????? | | ???????????????????????#"""""""#?????????????????? | | ???????????????????????#########?????????????????? | | ?????????????????????????????????????????????????? | | ?????????????????????????????????????????????????? | | ?????????????????????????????????????????????????? | | ?????????????????????????????????????????????????? | | ?????????????????????????????????????????????????? | | ?????????????????????????????????????????????????? | | ?????????????????????????????????????????????????? | | ?????????????????????????????????????????????????? | | ?????????????????????????????????????????????????? | | ?????????????????????????????????????????????????? | | ?????????????????????????????????????????????????? | | ?????????????????????????????????????????????????? | | ?????????????????????????????????????????????????? | | ?????????????????????????????????????????????????? | | ?????????????????????????????????????????????????? | | ?????????????????????????????????????????????????? | | ?????????????????????????????????????????????????? | +----------------------------------------------------+ Best States ------------- Heat Dissipation 87 Energy Generation 71 Energy Capacity 770 Matter Stores 300 Matter Capacity 300 Sight Range 24 Robot Scan Range 16 Terrain Scan Range 20 Terrain Scan Density 210 ECM Strength 1 Jamming Range 16 Corruption Block 17 Armor Coverage 600 Core Shielding 30 Melee Speed Boost 20 Evasion (%) 74 Targeting Accuracy 12 Target Analysis 8 Recoil Reduction 2 Salvage Targeting 3 Offensive Hacking 35 Item Schematics ----------------- Adv. Matter Compressor | -2/Testing | Archive Exp. Energy Well | -2/Testing | Archive Lgt. Regenerative Plating | -2/Testing | Hacked Med. Regenerative Plating | -2/Testing | Hacked Imp. Thermal Defense Suite | -2/Testing | Archive Lgt. Antimatter Cannon | -2/Testing | Archive Coolant Network | -2/Testing | Archive Exp. Gyrokinetic Inverter | -2/Testing | Archive Enh. Multireflex Exoskeleton | -2/Testing | Archive Robot Schematics ------------------ G-73 Enforcer | -2/Testing | Archive Fabricated ------------ M-14 Sweeper | x1 | -6/Factory | Preloaded Remote Shield | x2 | -6/Factory | Preloaded Repaired ---------- Nothing Alien Tech Used ----------------- Core Expander Core Reset Matrix Transdimensional Reconstructor High-powered Transdimensional Reconstructor Matter Drive Subatomic Replicator Achievements -------------- Watch This! Challenges ------------ None Game ------ Seed LargeOmegaSlayer Manual? 0 Play Time 01:46:48 Cumulative 402.5 hours Start 2025.10.19 @ 00:21:53 End 2025.10.19 @ 02:16:09 Sessions 3 Manual Loads 0 Difficulty Rogue Special Mode None Game No. 518 Rogue 518 Adventurer 0 Explorer 0 Win Type - Total 12 Types 6/0/1/2/1/0/2/0/0/0 Lore% 88 Gallery% 84 Achievement% 72 Wizard Run 0 Options --------- Layout 0 ASCII 0 Keyboard 0 Movement Mouse Keybinds 0 Fullscreen 1 Font 24/Tamsyn Map View 76x50 Zoom Use 0% Tactical HUD 1 Map Filters NONE Filters NONE Steam 1 RUN: d5e0914f-9f3d-4f28-a5fb-1ee4505e59a1